bitfinex-derivatives/quotes_BNBF0:USTF0_20250329
["timestamp","ask_amount","ask_price","bid_price","bid_amount"]
[1743254432628,1.24265584,606.11,605.29,0.33042012]
[1743254432825,1.24265584,606.1,605.29,0.33042012]
[1743254433025,1.24265584,606.09,605.29,0.33042012]
[1743254433326,0.98033247,606.09,605.29,0.33042012]
[1743254433526,0.98033247,606.08,605.29,0.33042012]
[1743254434228,0.98033247,606.07,605.29,0.33042012]
[1743254435024,0.98033247,606.06,605.29,0.33042012]
[1743254435623,0.98033247,606.05,605.29,0.33042012]
[1743254436424,0.98033247,606.04,605.29,0.33042012]
[1743254436828,0.98033247,606.03,605.29,1.63842012]
[1743254438125,0.98033247,606.02,605.29,1.63842012]
[1743254438527,0.98033247,606.02,605.3,1.21547849]
[1743254438727,0.98033247,606.01,605.3,1.21547849]
[1743254439132,1.24544064,606.17,605.31,0.33040921]
[1743254439329,2.02141127,606.16,605.31,0.33040921]
[1743254439529,2.02141127,606.15,605.31,0.33040921]
[1743254439732,2.02141127,606.14,605.31,0.33040921]
[1743254439928,2.02141127,606.13,605.31,0.33040921]
[1743254440134,2.02141127,606.12,605.31,0.33040921]
[1743254440329,2.02141127,606.11,605.31,0.33040921]
[1743254440533,2.02141127,606.1,605.31,0.33040921]
[1743254440733,1.24299132,606.09,605.31,0.33040921]
[1743254440931,2.55132206,606.13,605.31,0.33040921]
[1743254440932,1.24299132,606.08,605.48,1.21547849]
[1743254441131,1.24299132,606.07,605.48,1.21547849]
[1743254441347,0.98127771,606.07,605.48,1.21547849]
[1743254441639,1.24305242,606.06,605.48,1.21547849]
[1743254441830,1.24306509,606.05,605.48,1.21547849]
[1743254442036,0.98127771,606.05,605.48,1.21547849]
[1743254442635,1.405,606.19,605.48,1.21547849]
[1743254442636,2.22444855,606.04,605.48,1.21547849]
[1743254442837,1.24317084,606.03,605.48,1.21547849]
[1743254443040,1.24317084,606.02,605.37,0.28723062]
[1743254443235,1.24317084,606.01,605.37,0.28723062]
[1743254443440,1.24317084,606.0,605.37,0.28723062]
[1743254443640,1.24317084,605.99,605.37,0.28723062]
[1743254443935,1.24317084,605.98,605.37,0.28723062]
[1743254444137,0.98127771,606.0,605.37,0.28723062]
[1743254444340,2.02190852,605.99,605.37,0.28723062]
[1743254444540,2.02190852,605.98,605.37,0.28723062]
[1743254444735,2.02190852,605.97,605.37,0.28723062]
[1743254444935,1.24328809,605.96,605.31,0.33040921]
[1743254445241,1.24328809,605.95,605.37,0.28727804]
[1743254445537,2.22491062,605.94,605.37,0.28727804]
[1743254445740,0.98162253,605.94,605.37,0.28727804]
[1743254445941,0.98162253,605.93,605.37,0.28727804]
[1743254446336,0.98162253,605.92,605.37,0.28727804]
[1743254447340,0.98162253,605.91,605.37,0.28727804]
[1743254447644,0.98162253,605.91,605.38,1.21547849]
[1743254447843,0.98162253,605.9,605.38,1.21547849]
[1743254448243,0.98162253,605.89,605.38,1.21547849]
[1743254449040,1.405,606.19,605.38,1.21547849]
[1743254449240,3.26898977,606.18,605.38,1.21547849]
[1743254449446,1.405,606.19,605.38,1.21547849]
[1743254449447,3.26898977,606.17,605.38,1.21547849]
[1743254449640,3.26898977,606.16,605.38,1.21547849]
[1743254449848,3.26898977,606.15,605.37,1.50274823]
[1743254450047,3.26898977,606.14,605.37,1.50274823]
[1743254450243,4.25096713,606.13,605.37,1.50274823]
[1743254450447,3.26898977,606.12,605.37,1.50274823]
[1743254450648,3.26898977,606.11,605.37,1.50274823]
[1743254450848,3.26902802,606.1,605.37,1.21547849]
[1743254451147,3.26902802,606.09,605.37,1.50271504]
[1743254451348,5.82223598,606.08,605.37,1.50271504]
[1743254451547,2.02274167,606.07,605.37,1.50271504]
[1743254451749,2.02274167,606.06,605.37,1.50271504]
[1743254451951,2.02274167,606.05,605.37,1.50271504]
[1743254452250,1.2438127,606.04,605.37,0.28723655]
[1743254452549,1.2438127,606.03,605.37,0.28723655]
[1743254452745,1.24383598,606.02,605.37,0.28723655]
[1743254453049,2.22581514,606.01,605.37,0.28723655]
[1743254453249,0.98197736,606.01,605.37,0.28723655]
[1743254453853,0.98197736,606.0,605.34,1.21547849]
[1743254454249,0.98197736,606.0,605.37,0.28724959]
[1743254454445,1.185,605.99,605.37,0.28724959]
[1743254454649,0.98197736,605.98,605.37,0.28724959]
[1743254455148,0.98197736,605.97,605.37,0.28724959]
[1743254455947,0.98197736,605.96,605.37,0.28724959]
[1743254456352,0.98197736,605.96,605.37,1.50272808]
[1743254456848,0.98197736,605.95,605.37,1.21547849]
[1743254457250,0.98197736,605.95,605.37,1.5027506]
[1743254457452,0.98197736,605.94,605.37,1.5027506]
[1743254457851,0.98197736,605.93,605.37,1.5027506]
[1743254458647,2.22586161,605.92,605.37,1.5027506]
[1743254458846,0.98197736,605.92,605.37,1.5027506]
[1743254459250,0.98197736,605.91,605.37,1.5027506]
[1743254459658,1.115,605.95,605.38,0.330371]
[1743254464148,2.22539865,605.94,605.38,0.330371]
[1743254464353,0.98178555,605.94,605.38,0.330371]
[1743254464655,1.24362015,605.93,605.38,0.330371]
[1743254464855,2.02249734,605.92,605.38,0.330371]
[1743254465049,0.98178555,605.93,605.38,0.330371]
[1743254465253,1.24360042,605.92,605.38,0.330371]
[1743254465454,0.98178555,605.92,605.38,0.330371]
[1743254465655,1.24361848,605.91,605.38,0.330371]
[1743254465854,0.98178555,605.92,605.38,0.330371]
[1743254466052,0.98178555,605.9,605.38,0.330371]
[1743254466859,0.98178555,605.89,605.38,0.330371]
[1743254467358,1.115,605.95,605.38,0.330371]
[1743254468256,0.98171168,605.94,605.38,0.330371]
[1743254468756,0.98171168,605.93,605.38,0.330371]
[1743254469460,0.98171168,605.92,605.38,0.330371]
[1743254469859,0.98171168,605.91,605.38,0.330371]
[1743254470658,0.98171168,605.9,605.38,0.330371]
[1743254470856,2.48871168,605.9,605.49,1.21547849]
[1743254471356,1.507,605.9,605.49,1.21547849]
[1743254472864,1.507,605.9,605.42,0.28724959]
[1743254473558,1.789,605.89,605.42,0.28724959]
[1743254474764,1.789,605.89,605.38,0.330371]
[1743254475074,1.789,605.89,605.42,0.28725196]
[1743254476665,1.117,605.88,605.42,0.28725196]
[1743254477459,1.117,605.88,605.43,0.33034372]
[1743254484767,1.10469026,605.88,605.43,0.33034372]
[1743254487074,1.10469026,605.88,605.47,1.21547849]
[1743254488974,1.10469026,605.88,605.52,1.21547849]
[1743254489366,1.789,605.89,605.52,1.21547849]
[1743254489573,1.507,605.9,605.52,1.21547849]
[1743254490775,1.507,605.9,605.46,0.28723655]
[1743254492875,1.507,605.9,605.44,1.21547849]
[1743254493081,1.507,605.9,605.43,0.33034372]
[1743254493483,1.566,605.89,605.45,0.28724603]
[1743254495778,1.566,605.89,605.46,0.33032735]
[1743254498085,1.566,605.89,605.66,1.21547849]
[1743254500289,1.566,605.89,605.54,1.21547849]
[1743254500583,1.566,605.89,605.55,0.33027825]
[1743254502988,1.566,605.89,605.64,1.21547849]
[1743254503188,1.566,605.89,605.65,0.33022372]
[1743254505193,1.566,605.89,605.65,1.61922372]
[1743254517498,1.507,605.9,605.65,1.61922372]
[1743254520399,1.44,605.89,605.65,1.61922372]
[1743254526103,1.05,605.88,605.65,1.61922372]
[1743254533011,1.05,605.88,605.75,1.21547849]
[1743254533212,1.05,605.88,605.76,0.33016376]
[1743254535508,1.05,605.88,605.79,1.21547849]
[1743254537512,1.05,605.88,605.76,0.33016376]
[1743254537513,1.05,605.88,605.78,1.21547849]
[1743254537705,1.05,605.88,605.78,1.54563135]
[1743254540112,1.05,605.88,605.78,0.33015286]
[1743254546718,1.05,605.88,605.78,1.54563135]
[1743254549120,1.58,605.98,605.78,1.54563135]
[1743254549421,1.58,605.98,605.78,0.33015286]
[1743254551918,2.91,605.98,605.78,0.33015286]
[1743254569743,2.91,605.98,605.68,1.2]
[1743254570148,1.33,605.98,605.68,1.2]
[1743254572553,1.237,605.97,605.68,1.2]
[1743254584053,1.417,605.96,605.68,1.2]
[1743254596067,1.504,605.95,605.68,1.2]
[1743254603380,2.958,605.95,605.68,1.2]
[1743254614888,4.378,605.95,605.68,1.2]
[1743254642609,0.9822564,605.94,605.68,1.2]
[1743254643510,1.454,605.95,605.68,1.2]
[1743254646011,2.733,605.95,605.68,1.2]
[1743254646706,4.48,605.95,605.68,1.2]
[1743254672346,4.48,605.95,605.69,0.33020191]
[1743254690057,4.48,605.95,605.7,1.394]
[1743254690259,4.48,605.95,605.71,0.33019101]
[1743254691857,0.97835517,607.28,605.71,0.33019101]
[1743254692057,3.23595955,607.27,605.71,0.33019101]
[1743254692357,3.23595955,607.26,605.71,0.33019101]
[1743254692556,3.23595955,607.25,605.71,0.33019101]
[1743254692758,1.30769254,607.28,605.71,0.33019101]
[1743254692759,3.23595955,607.24,605.71,0.33019101]
[1743254693058,3.23595955,607.23,605.71,0.33019101]
[1743254693258,3.23595955,607.22,605.71,0.33019101]
[1743254693452,3.23595955,607.21,605.71,0.33019101]
[1743254693653,3.23595955,607.2,605.71,0.33019101]
[1743254693858,3.23516871,607.19,605.71,0.33019101]
[1743254694061,3.23516871,607.18,605.71,0.33019101]
[1743254694262,3.23516871,607.17,605.71,0.33019101]
[1743254694556,3.23516871,607.16,605.71,0.33019101]
[1743254694861,5.76119465,607.15,605.71,0.33019101]
[1743254695063,3.23516871,607.14,605.71,0.33019101]
[1743254695361,4.36716871,607.13,605.71,0.33019101]
[1743254695557,3.23516871,607.12,605.71,0.33019101]
[1743254695756,3.23516871,607.11,605.71,0.33019101]
[1743254695954,3.23516871,607.1,605.71,0.33019101]
[1743254696155,3.23516871,607.09,605.71,0.33019101]
[1743254696360,3.23516871,607.08,605.71,0.33019101]
[1743254696561,3.23516871,607.07,605.71,0.33019101]
[1743254696760,3.23516871,607.06,605.71,0.33019101]
[1743254696962,3.23516871,607.05,605.71,0.33019101]
[1743254697161,3.23516871,607.04,605.71,0.33019101]
[1743254697362,3.23516871,607.03,605.71,0.33019101]
[1743254697561,3.23516871,607.02,605.71,0.33019101]
[1743254697761,3.23516871,607.01,605.71,0.33019101]
[1743254697963,3.23310482,607.0,605.71,0.33019101]
[1743254698164,3.23310482,606.99,605.71,0.33019101]
[1743254698363,3.23310482,606.98,605.71,0.33019101]
[1743254698662,3.23310482,606.97,605.71,0.33019101]
[1743254698856,3.23310482,606.96,605.71,0.33019101]
[1743254699058,2.00077415,606.95,605.71,0.33019101]
[1743254699261,2.00077415,606.94,605.71,0.33019101]
[1743254699463,2.00077415,606.93,605.71,0.33019101]
[1743254699656,3.23310482,606.92,605.71,0.33019101]
[1743254699862,3.233169,606.91,605.71,0.33019101]
[1743254700062,3.233169,606.9,605.71,0.33019101]
[1743254700265,3.233169,606.89,605.71,0.33019101]
[1743254700463,3.233169,606.88,605.71,0.33019101]
[1743254700663,3.233169,606.87,605.71,0.33019101]
[1743254700859,3.233169,606.86,605.71,0.33019101]
[1743254701164,3.233169,606.85,605.71,0.33019101]
[1743254701360,3.233169,606.84,605.71,0.33019101]
[1743254701560,3.2334207,606.83,605.71,0.33019101]
[1743254701862,2.00089564,606.82,605.71,0.33019101]
[1743254702061,2.00089564,606.81,605.71,0.33019101]
[1743254702265,2.00089564,606.8,605.71,0.33019101]
[1743254702564,2.00089564,606.79,605.71,0.33019101]
[1743254702766,2.00089564,606.78,605.71,0.33019101]
[1743254702966,2.00089564,606.77,605.71,0.33019101]
[1743254703159,2.00076695,606.76,605.71,0.33019101]
[1743254703358,2.00076695,606.75,605.71,0.33019101]
[1743254703559,1.23049454,606.74,605.71,0.33019101]
[1743254703763,1.23049454,606.73,605.71,0.33019101]
[1743254703964,1.23049454,606.72,605.71,0.33019101]
[1743254704162,2.52602594,606.72,605.71,0.33019101]
[1743254704569,0.97154844,606.71,605.71,0.33019101]
[1743254705163,0.97154844,606.7,605.71,0.33019101]
[1743254705761,0.97154844,606.69,605.71,0.33019101]
[1743254706468,0.97154844,606.68,605.71,0.33019101]
[1743254707065,0.97154844,606.67,605.71,0.33019101]
[1743254707466,0.97154844,606.66,605.71,0.33019101]
[1743254708067,0.97154844,606.65,605.71,0.33019101]
[1743254708672,0.97154844,606.64,605.71,0.33019101]
[1743254709169,0.77079501,606.85,605.71,0.33019101]
[1743254709364,2.00234977,606.84,605.71,0.33019101]
[1743254709570,2.00281966,606.83,605.71,0.33019101]
[1743254709771,2.00281966,606.82,605.71,0.33019101]
[1743254710069,2.00281966,606.81,605.71,0.33019101]
[1743254710270,2.00281966,606.8,605.71,0.33019101]
[1743254710469,2.00281966,606.79,605.71,0.33019101]
[1743254710669,2.00281966,606.78,605.71,0.33019101]
[1743254710863,2.00281966,606.77,605.71,0.33019101]
[1743254711067,1.23161954,606.76,605.71,0.33019101]
[1743254711264,1.23161954,606.75,605.71,0.33019101]
[1743254711469,1.23161954,606.74,605.71,0.33019101]
[1743254711770,1.23161954,606.73,605.71,0.33019101]
[1743254711970,2.5272556,606.76,605.71,0.33019101]
[1743254712171,0.97208968,606.73,605.75,1.21547849]
[1743254712367,0.97208968,606.73,605.76,0.33016376]
[1743254712572,0.97208968,606.72,605.76,0.33016376]
[1743254713265,0.97208968,606.71,605.76,0.33016376]
[1743254713671,0.97208968,606.7,605.76,0.33016376]
[1743254714274,0.97208968,606.69,605.78,1.21547849]
[1743254714467,0.97208968,606.69,605.79,0.33014741]
[1743254715274,0.97208968,606.68,605.79,0.33014741]
[1743254715971,0.97208968,606.67,605.93,1.21547849]
[1743254716477,0.97208968,606.66,605.93,1.21547849]
[1743254717077,1.322,606.75,605.94,0.33006568]
[1743254717471,0.97395691,606.74,605.94,0.33006568]
[1743254718568,1.322,606.75,605.94,0.33006568]
[1743254719575,0.97439392,606.74,605.94,0.33006568]
[1743254720071,1.322,606.75,605.94,0.33006568]
[1743254720672,1.322,606.75,605.95,0.953]
[1743254721073,0.97460836,606.74,605.95,0.953]
[1743254721477,1.322,606.75,605.95,0.953]
[1743254723978,1.322,606.75,606.06,1.21547849]
[1743254726080,1.322,606.75,605.95,0.953]
[1743254728083,1.521,606.74,605.95,0.953]
[1743254730587,0.977918,606.73,605.96,1.21547849]
[1743254731286,1.521,606.74,605.96,1.21547849]
[1743254731287,0.977918,606.72,605.96,1.21547849]
[1743254731886,0.977918,606.71,605.96,1.21547849]
[1743254732489,2.108918,606.7,605.96,1.21547849]
[1743254733085,2.108918,606.7,605.97,0.33004934]
[1743254733484,0.977918,606.69,605.97,0.33004934]
[1743254733890,1.131,606.7,605.97,0.33004934]
[1743254734787,0.9793436,606.69,605.97,0.33004934]
[1743254735094,1.131,606.7,605.97,0.33004934]
[1743254735498,1.131,606.7,606.03,1.21547849]
[1743254735887,1.24087924,606.69,606.03,1.21547849]
[1743254736086,1.131,606.7,606.03,1.21547849]
[1743254736288,2.22058031,606.69,606.03,1.21547849]
[1743254736495,1.24104598,606.68,606.03,1.21547849]
[1743254736694,0.97953433,606.69,606.03,1.21547849]
[1743254736899,1.24107885,606.68,606.03,1.21547849]
[1743254737100,0.97953433,606.67,606.03,1.21547849]
[1743254738001,0.97953433,606.66,606.03,1.21547849]
[1743254738600,0.97953433,606.65,606.03,1.21547849]
[1743254738999,0.97953433,606.64,606.03,1.21547849]
[1743254739703,0.97953433,606.63,606.03,1.21547849]
[1743254739908,0.97953433,606.63,606.08,1.21547849]
[1743254740103,0.956,606.69,606.08,1.21547849]
[1743254740299,1.24157759,606.68,606.08,1.21547849]
[1743254740499,0.97995309,606.68,606.08,1.21547849]
[1743254740898,0.97995309,606.67,606.08,1.21547849]
[1743254741304,0.97995309,606.66,606.08,1.21547849]
[1743254742201,0.97995309,606.65,606.15,1.21547849]
[1743254742606,0.97995309,606.64,606.15,1.21547849]
[1743254743805,0.956,606.69,606.15,1.21547849]
[1743254744205,0.97997826,606.68,606.13,1.21547849]
[1743254744907,0.97997826,606.67,606.13,1.21547849]
[1743254745301,0.956,606.69,606.13,1.21547849]
[1743254745302,2.76297826,606.66,606.13,1.21547849]
[1743254745908,0.97997826,606.65,606.13,1.21547849]
[1743254746811,1.783,606.66,606.07,1.21547849]
[1743254747608,2.01950011,606.65,606.07,1.21547849]
[1743254748011,0.77762402,606.64,606.07,1.21547849]
[1743254748211,2.01952183,606.64,606.07,1.21547849]
[1743254748514,0.989,606.63,606.0,1.21547849]
[1743254748710,2.23089781,606.63,606.0,1.21547849]
[1743254749212,0.989,606.63,606.0,1.21547849]
[1743254750909,1.24178094,606.62,605.97,1.54552783]
[1743254751112,1.24178094,606.61,605.97,1.54552783]
[1743254751413,1.24178094,606.6,605.97,1.83250264]
[1743254751613,1.2418043,606.59,605.97,1.83250264]
[1743254751814,1.24181209,606.58,605.97,1.83250264]
[1743254752014,2.22198187,606.57,605.97,1.83250264]
[1743254752210,1.24181209,606.56,605.97,1.83250264]
[1743254752415,1.24185304,606.55,605.97,0.61702415]
[1743254752615,1.24185304,606.54,605.97,0.61702415]
[1743254752811,0.98016978,606.55,605.97,0.61702415]
[1743254753010,1.2418665,606.54,605.97,0.61702415]
[1743254753210,0.98016978,606.55,605.97,0.61702415]
[1743254753412,1.24183088,606.54,605.97,0.61702415]
[1743254753613,2.25883088,606.53,605.97,0.61702415]
[1743254753814,1.99716978,606.53,605.97,0.61702415]
[1743254754117,1.99716978,606.53,605.97,0.33004934]
[1743254754416,0.98016978,606.52,605.97,0.33004934]
[1743254755115,0.98016978,606.51,605.97,0.33004934]
[1743254756112,0.98016978,606.5,605.97,0.33004934]
[1743254757018,0.98016978,606.49,605.97,0.33004934]
[1743254758019,0.98016978,606.48,605.97,0.33004934]
[1743254758814,0.98016978,606.47,605.97,0.33004934]
[1743254759413,1.017,606.53,605.97,0.33004934]
[1743254760217,0.97989602,606.52,605.97,0.33004934]
[1743254760814,1.017,606.53,605.97,0.33004934]
[1743254761219,1.083,606.52,605.97,0.33004934]
[1743254764220,2.22148589,606.51,605.97,0.33004934]
[1743254764420,1.24153302,606.5,605.97,0.33004934]
[1743254764617,3.78928513,606.49,605.97,0.33004934]
[1743254764824,2.54775211,606.49,605.97,0.33004934]
[1743254765121,1.24139022,606.48,605.97,0.33004934]
[1743254765321,2.54775211,606.49,605.97,0.33004934]
[1743254765515,1.24113525,606.48,605.97,0.33004934]
[1743254765720,1.24114087,606.47,605.95,0.953]
[1743254765919,1.24114087,606.46,605.95,0.953]
[1743254766119,1.24114087,606.45,605.95,0.953]
[1743254766315,2.54758273,606.45,605.95,0.953]
[1743254766520,1.24086066,606.44,605.95,0.953]
[1743254766720,2.54758273,606.45,605.95,0.953]
[1743254766920,0.97995287,606.43,605.95,0.953]
[1743254767719,0.97995287,606.42,605.95,0.953]
[1743254768324,0.97995287,606.41,605.95,0.953]
[1743254768724,0.97995287,606.4,605.95,0.953]
[1743254769523,0.97995287,606.39,605.95,0.953]
[1743254770027,0.97995287,606.38,605.95,0.953]
[1743254770421,1.083,606.52,605.95,0.953]
[1743254770622,2.0162001,606.51,605.95,0.953]
[1743254770826,2.0162001,606.5,605.95,0.953]
[1743254771026,2.0162001,606.49,605.95,0.953]
[1743254771225,2.0162001,606.48,605.95,0.953]
[1743254771524,1.23955291,606.47,605.95,0.953]
[1743254771723,1.23955291,606.46,605.95,0.953]
[1743254771925,1.23955291,606.45,605.95,0.953]
[1743254772122,2.54456674,606.47,605.95,0.953]
[1743254772323,1.23937487,606.46,605.95,0.953]
[1743254772527,0.97867951,606.45,605.95,0.953]
[1743254772729,0.97867951,606.45,605.84,0.28705411]
[1743254773123,0.97867951,606.44,605.84,0.28705411]
[1743254773927,0.97867951,606.43,605.84,0.28705411]
[1743254774328,0.97867951,606.42,605.84,0.28705411]
[1743254775027,0.97867951,606.41,605.56,1.21547849]
[1743254775529,1.083,606.52,605.84,0.28710384]
[1743254775730,1.083,606.52,605.56,1.21547849]
[1743254775731,1.23872426,606.51,605.56,1.21547849]
[1743254775930,1.083,606.52,605.57,0.61737237]
[1743254776126,1.23872426,606.51,605.58,0.33026189]
[1743254776327,1.083,606.52,605.58,0.33026189]
[1743254776527,0.97766473,606.5,605.58,0.33026189]
[1743254777332,0.97766473,606.49,605.58,0.33026189]
[1743254778031,0.97766473,606.48,605.58,0.33026189]
[1743254778626,0.97766473,606.47,605.58,0.33026189]
[1743254779132,0.97766473,606.46,605.58,0.33026189]
[1743254779727,0.97766473,606.45,605.58,0.33026189]
[1743254780633,0.97766473,606.44,605.58,0.33026189]
[1743254781028,0.97766473,606.43,605.58,0.33026189]
[1743254781233,1.23800415,606.42,605.58,0.33026189]
[1743254781535,3.19125801,606.41,605.58,0.33026189]
[1743254781735,1.23800415,606.4,605.58,0.33026189]
[1743254782036,1.23800415,606.39,605.58,0.33026189]
[1743254782230,1.23800415,606.38,605.58,0.33026189]
[1743254782433,1.23800415,606.37,605.58,0.33026189]
[1743254782629,1.23800415,606.36,605.58,0.33026189]
[1743254782833,1.23800415,606.35,605.58,0.33026189]
[1743254783030,1.2376682,606.34,605.58,0.33026189]
[1743254783233,0.97766473,606.36,605.58,0.33026189]
[1743254783430,1.23731235,606.35,605.58,0.33026189]
[1743254783631,0.97766473,606.36,605.58,0.33026189]
[1743254783834,0.97766473,606.34,605.58,0.33026189]
[1743254784237,0.97766473,606.34,605.6,1.21547849]
[1743254784437,0.97766473,606.33,605.6,1.21547849]
[1743254785239,0.97766473,606.32,605.6,1.21547849]
[1743254785841,0.97766473,606.31,605.58,0.33026189]
[1743254786243,0.97766473,606.3,605.58,0.33026189]
[1743254786645,1.178,606.41,605.58,0.33026189]
[1743254786943,1.23652229,606.4,605.58,0.33026189]
[1743254787144,1.23652229,606.39,605.58,0.33026189]
[1743254787345,1.23652229,606.38,605.58,0.33026189]
[1743254787545,1.23652229,606.37,605.58,0.33026189]
[1743254787747,0.97611423,606.37,605.58,0.33026189]
[1743254788440,0.97611423,606.36,605.58,0.33026189]
[1743254788847,2.35411423,606.36,605.58,0.33026189]
[1743254789040,0.97611423,606.35,605.58,0.33026189]
[1743254789641,1.378,606.36,605.58,0.33026189]
[1743254790041,1.181,606.35,605.58,0.33026189]
[1743254798850,1.23738585,606.34,605.59,1.21547849]
[1743254799050,1.181,606.35,605.59,1.21547849]
[1743254799253,1.23746874,606.34,605.59,1.21547849]
[1743254799449,1.181,606.35,605.59,1.21547849]
[1743254799756,1.23746069,606.34,605.59,1.21547849]
[1743254799955,1.23746069,606.33,605.59,1.21547849]
[1743254800150,1.23746069,606.32,605.59,1.21547849]
[1743254800352,2.53999011,606.34,605.58,0.61742614]
[1743254800353,1.23746069,606.31,605.58,0.61742614]
[1743254800551,0.97691927,606.3,605.58,0.61742614]
[1743254800953,0.97691927,606.29,605.58,0.61742614]
[1743254801455,2.21452904,606.28,605.58,0.61742614]
[1743254801755,0.97691927,606.28,605.58,0.61742614]
[1743254801956,0.97691927,606.27,605.58,0.61742614]
[1743254802856,0.97691927,606.26,605.58,0.61742614]
[1743254803254,0.97691927,606.25,605.58,0.61742614]
[1743254803658,1.181,606.35,605.58,0.61742614]
[1743254804456,0.97697178,606.34,605.58,0.61742614]
[1743254804959,0.97697178,606.34,605.58,0.33026189]
[1743254805153,1.181,606.35,605.58,0.33026189]
[1743254805552,1.181,606.35,605.58,0.61740956]
[1743254808162,1.181,606.35,605.58,0.33026189]
[1743254808359,1.305,606.34,605.58,0.61736455]
[1743254811062,1.305,606.34,605.58,0.33026189]
[1743254811263,1.305,606.34,605.58,0.61736573]
[1743254814064,1.305,606.34,605.58,0.33026189]
[1743254814264,1.305,606.34,605.79,1.21547849]
[1743254816472,1.305,606.34,605.58,0.61738942]
[1743254816869,0.97876419,606.33,605.58,0.61738942]
[1743254817576,0.97876419,606.32,605.58,0.61738942]
[1743254818170,0.97876419,606.31,605.58,0.61738942]
[1743254818773,1.305,606.34,605.58,0.61738942]
[1743254819377,0.97909941,606.33,605.58,0.61738942]
[1743254820077,0.97909941,606.33,605.58,0.33026189]
[1743254820278,0.97909941,606.32,605.58,0.61739297]
[1743254820882,1.782,606.33,605.58,0.61739297]
[1743254821979,0.97946871,606.32,605.58,0.61739297]
[1743254822480,0.97946871,606.31,605.58,0.61739297]
[1743254823081,0.97946871,606.3,605.58,0.33026189]
[1743254823479,0.97946871,606.3,605.58,0.61739534]
[1743254823678,2.22109983,606.29,605.58,0.61739534]
[1743254823881,1.24163112,606.28,605.58,0.61739534]
[1743254824080,1.24163112,606.27,605.58,0.61739534]
[1743254824280,1.24163112,606.26,605.58,0.61739534]
[1743254824481,2.42246871,606.26,605.58,0.61739534]
[1743254824877,1.24175508,606.25,605.58,0.61739534]
[1743254825081,1.24178334,606.24,605.58,0.61739534]
[1743254825281,0.97946871,606.25,605.58,0.61739534]
[1743254825484,1.24179536,606.24,605.58,0.61739534]
[1743254825684,1.24179571,606.23,605.58,0.61739534]
[1743254825883,0.97946871,606.23,605.58,0.61739534]
[1743254826083,0.97946871,606.23,605.58,0.33026189]
[1743254826281,0.97946871,606.23,605.58,0.61743562]
[1743254826883,1.24179448,606.22,605.58,0.61743562]
[1743254827084,0.97946871,606.22,605.58,0.61743562]
[1743254827483,1.24177709,606.21,605.58,0.61743562]
[1743254827685,1.24177709,606.2,605.58,0.61743562]
[1743254827885,2.54795927,606.21,605.58,0.61743562]
[1743254828186,2.22126253,606.2,605.58,0.61743562]
[1743254828385,0.97946871,606.2,605.58,0.61743562]
[1743254828586,1.24174034,606.19,605.58,0.61743562]
[1743254828882,0.97946871,606.19,605.58,0.61743562]
[1743254829083,0.97946871,606.19,605.58,0.33026189]
[1743254829288,0.97946871,606.18,605.58,0.33026189]
[1743254829490,0.97946871,606.18,605.58,0.61745221]
[1743254829989,0.97946871,606.17,605.58,0.61745221]
[1743254830697,0.97946871,606.16,605.58,0.61745221]
[1743254831292,0.97946871,606.15,605.58,0.61745221]
[1743254831590,0.97946871,606.14,605.58,0.61745221]
[1743254831996,0.97946871,606.14,605.58,0.33026189]
[1743254832496,1.443,606.26,605.58,0.61748303]
[1743254832796,2.0190297,606.25,605.58,0.61748303]
[1743254832998,1.24154233,606.24,605.58,0.61748303]
[1743254833198,1.24154233,606.23,605.58,0.61748303]
[1743254833496,1.24154233,606.22,605.58,0.61748303]
[1743254833696,1.24154233,606.21,605.58,0.61748303]
[1743254833897,0.98009162,606.21,605.58,0.61748303]
[1743254834098,1.24153824,606.2,605.58,0.61748303]
[1743254834299,0.98009162,606.21,605.58,0.61748303]
[1743254834501,1.2415477,606.2,605.58,0.61748303]
[1743254834799,0.98009162,606.2,605.58,0.61748303]
[1743254835098,0.98009162,606.2,605.58,0.33026189]
[1743254835298,1.443,606.26,605.58,0.33026189]
[1743254835299,0.98009162,606.19,605.58,0.33026189]
[1743254835502,0.98009162,606.19,605.58,0.61745103]
[1743254835993,1.443,606.26,605.58,0.61745103]
[1743254835994,0.98009162,606.18,605.58,0.61745103]
[1743254836598,0.98009162,606.17,605.58,0.61745103]
[1743254837197,0.98009162,606.16,605.58,0.61745103]
[1743254837798,1.443,606.26,605.58,0.61745103]
[1743254837799,0.98009162,606.15,605.58,0.61745103]
[1743254838400,1.443,606.26,605.58,0.61745103]
[1743254838701,2.01910206,606.25,605.58,0.61745103]
[1743254838898,1.24158646,606.24,605.58,0.61745103]
[1743254839096,1.24158646,606.23,605.58,0.61745103]